bitfinex/quotes_BTCUSD_20230103
["timestamp","ask_amount","ask_price","bid_price","bid_amount"]
[1672776709061,0.78100285,16669.0,16667.0,1.66425459]
[1672776710115,0.78100285,16669.0,16667.0,2.16425459]
[1672776710879,0.78100285,16669.0,16667.0,2.1643643]
[1672776711397,0.78100285,16669.0,16668.0,0.204187]
[1672776711649,0.36733805,16669.0,16668.0,0.204187]
[1672776711899,0.36733805,16669.0,16667.0,1.71929371]
[1672776712160,0.36733805,16669.0,16667.0,2.63708721]
[1672776712422,0.78100285,16669.0,16668.0,0.204185]
[1672776712682,0.36733805,16669.0,16668.0,0.204185]
[1672776713287,0.36733805,16669.0,16668.0,0.804137]
[1672776714186,0.4136648,16670.0,16668.0,0.804137]
[1672776714461,0.33100267,16670.0,16668.0,0.91775404]
[1672776714696,1.34454847,16670.0,16668.0,0.36080204]
[1672776714955,1.34454847,16670.0,16668.0,0.31775302]
[1672776715200,0.74466747,16670.0,16669.0,0.5]
[1672776715451,0.43961238,16671.0,16669.0,2.64173429]
[1672776715701,0.01761238,16671.0,16669.0,2.119872]
[1672776715949,0.01761238,16671.0,16670.0,0.204154]
[1672776716486,0.01761238,16671.0,16670.0,0.59988]
[1672776716743,0.01761238,16671.0,16670.0,0.804032]
[1672776717000,0.01761238,16671.0,16670.0,0.204152]
[1672776717236,0.01761238,16671.0,16669.0,2.119838]
[1672776718019,1.00968554,16671.0,16669.0,0.92004]
[1672776718305,2.02319434,16671.0,16669.0,0.92004]
[1672776718781,0.02822499,16670.0,16669.0,0.92004]
[1672776719029,0.02822499,16670.0,16669.0,0.9201497]
[1672776719771,0.02822499,16670.0,16669.0,0.9631497]
[1672776720526,0.02822499,16670.0,16669.0,0.96304]
[1672776720835,0.02822499,16670.0,16669.0,0.9631497]
[1672776721033,0.32234258,16670.0,16669.0,0.46304]
[1672776721322,1.33588738,16670.0,16669.0,0.043]
[1672776721549,2.55226138,16670.0,16669.0,0.043]
[1672776721801,1.93576738,16670.0,16669.0,0.04292127]
[1672776722560,0.73600738,16670.0,16669.0,0.54292127]
[1672776723070,0.32234258,16670.0,16669.0,0.54292127]
[1672776723567,0.92222258,16670.0,16669.0,0.04292127]
[1672776723833,1.93576738,16670.0,16669.0,0.04292127]
[1672776724585,2.82143138,16670.0,16669.0,0.04292127]
[1672776725331,2.56385622,16670.0,16669.0,0.04292127]
[1672776725575,2.82143138,16670.0,16669.0,0.04292127]
[1672776726101,2.38471158,16670.0,16669.0,0.04292127]
[1672776726352,2.38471158,16670.0,16669.0,0.04303617]
[1672776726614,0.62166399,16670.0,16669.0,0.54292127]
[1672776726864,1.07204919,16670.0,16669.0,0.54292127]
[1672776727105,0.80287919,16670.0,16669.0,0.54292127]
[1672776727351,1.48571399,16670.0,16669.0,0.54292127]
[1672776727599,0.88583399,16670.0,16669.0,0.54292127]
[1672776727849,0.20299919,16670.0,16669.0,0.54292127]
[1672776728097,0.02322499,16670.0,16669.0,0.96245127]
[1672776728344,0.02322499,16670.0,16669.0,1.16673517]
[1672776728600,0.02322499,16670.0,16669.0,1.76665117]
[1672776729108,0.02322499,16670.0,16669.0,1.16673517]
[1672776730408,0.02322499,16670.0,16669.0,1.16674517]
[1672776730901,0.02322499,16670.0,16669.0,1.76666117]
[1672776731928,0.02322499,16670.0,16669.0,2.46666117]
[1672776732685,0.02322499,16670.0,16669.0,2.74304478]
[1672776732930,0.02322499,16670.0,16669.0,3.34296078]
[1672776734457,0.02322499,16670.0,16669.0,3.64296078]
[1672776735733,0.02322499,16670.0,16669.0,4.65137678]
[1672776736027,0.02322499,16670.0,16669.0,4.05146078]
[1672776736225,0.02322499,16670.0,16669.0,4.25137678]
[1672776736728,0.02322499,16670.0,16669.0,3.65146078]
[1672776737497,0.02322499,16670.0,16669.0,4.05146078]
[1672776738258,0.02322499,16670.0,16669.0,3.45154478]
[1672776739035,0.02322499,16670.0,16669.0,4.05146078]
[1672776739850,0.02322499,16670.0,16669.0,3.75146078]
[1672776740358,0.02322499,16670.0,16669.0,3.15154478]
[1672776740857,0.02322499,16670.0,16669.0,2.55151388]
[1672776741108,0.48150045,16670.0,16669.0,1.36252127]
[1672776741364,0.30172625,16670.0,16669.0,1.36252127]
[1672776741620,0.48150045,16670.0,16669.0,1.36252127]
[1672776741872,0.89516525,16670.0,16669.0,1.24292127]
[1672776742122,2.36409525,16670.0,16669.0,0.74292127]
[1672776742378,2.36409525,16670.0,16669.0,0.04292127]
[1672776742621,1.76421525,16670.0,16669.0,0.04292127]
[1672776743144,1.16433525,16670.0,16669.0,0.04292127]
[1672776745060,0.13926153,16676.0,16669.0,0.86602127]
[1672776745264,0.20240284,16673.0,16670.0,1.10430604]
[1672776745531,0.37785708,16678.0,16672.0,1.50015004]
[1672776745791,0.88359342,16680.0,16679.0,0.5337431]
[1672776745792,0.00037,16680.0,16679.0,0.5337431]
[1672776746061,0.00037,16680.0,16679.0,0.96896436]
[1672776746315,0.42741408,16680.0,16679.0,0.7375991]
[1672776746573,0.42741408,16680.0,16679.0,0.5335931]
[1672776746574,0.00037,16680.0,16679.0,0.5335931]
[1672776746843,0.02164385,16680.0,16679.0,0.5335931]
[1672776747095,0.02164385,16680.0,16679.0,0.7375991]
[1672776747857,0.02164385,16680.0,16679.0,1.04334656]
[1672776748653,0.02164385,16680.0,16679.0,0.9987032]
[1672776748942,0.02164385,16680.0,16679.0,1.28826429]
[1672776750500,0.02164385,16680.0,16679.0,2.0571825]
[1672776750784,0.02164385,16680.0,16679.0,2.5571825]
[1672776751034,0.02164385,16680.0,16679.0,2.5491825]
[1672776751648,0.02164385,16680.0,16679.0,2.5531825]
[1672776752883,0.02164385,16680.0,16679.0,1.9536265]
[1672776753120,0.02164385,16680.0,16679.0,2.5531825]
[1672776753629,0.02164385,16680.0,16679.0,2.5491825]
[1672776754136,0.02164385,16680.0,16679.0,2.5911825]
[1672776756681,0.02164385,16680.0,16679.0,3.1907385]
[1672776758209,0.02164385,16680.0,16679.0,3.7902945]
[1672776758458,0.02164385,16680.0,16679.0,3.1907385]
[1672776758708,0.02164385,16680.0,16679.0,2.5911825]
[1672776758966,0.02164385,16680.0,16679.0,2.30962141]
[1672776759220,0.55763534,16680.0,16679.0,1.3791551]
[1672776759471,0.55763534,16680.0,16679.0,1.10843345]
[1672776759717,0.38613534,16680.0,16679.0,1.70798945]
[1672776760232,0.38613534,16680.0,16679.0,1.3371551]
[1672776760741,0.38613534,16680.0,16679.0,1.06575574]
[1672776760980,0.38613534,16680.0,16679.0,0.7375991]
[1672776761995,1.4210266,16680.0,16679.0,0.7375991]
[1672776762247,0.8215066,16680.0,16679.0,0.5335931]
[1672776762495,0.38613534,16680.0,16679.0,0.5335931]
[1672776762748,0.38613534,16680.0,16679.0,0.7375991]
[1672776763268,0.38613534,16680.0,16679.0,1.06570518]
[1672776763520,0.38613534,16680.0,16679.0,1.06560854]
[1672776766945,0.98565534,16680.0,16679.0,1.06560854]
[1672776767897,0.02164385,16680.0,16679.0,1.06560854]
[1672776769412,0.02164385,16680.0,16679.0,1.06552582]
[1672776770401,0.62116385,16680.0,16679.0,1.06552582]
[1672776770631,0.94756365,16680.0,16679.0,0.73751638]
[1672776771672,0.34804365,16680.0,16679.0,0.53351038]
[1672776771945,0.94756365,16680.0,16679.0,0.53351038]
[1672776772962,1.38293491,16680.0,16679.0,0.53351038]
[1672776773214,1.98245491,16680.0,16679.0,0.53351038]
[1672776774254,1.98245491,16680.0,16679.0,0.53751038]
[1672776775509,1.80997899,16680.0,16679.0,0.53751038]
[1672776775791,3.00901899,16680.0,16679.0,0.53751038]
[1672776776032,2.40949899,16680.0,16679.0,0.53751038]
[1672776776281,3.00901899,16680.0,16679.0,0.53751038]
[1672776776529,3.00901899,16680.0,16679.0,0.53351038]
[1672776776796,3.11801899,16680.0,16679.0,0.53751038]
[1672776777287,2.51849899,16680.0,16679.0,0.53751038]
[1672776780569,3.11801899,16680.0,16679.0,0.53751038]
[1672776780825,3.73451299,16680.0,16679.0,0.53751038]
[1672776781520,3.62551299,16680.0,16679.0,0.53351038]
[1672776782501,3.71351299,16680.0,16679.0,0.53851038]
[1672776782748,3.62551299,16680.0,16679.0,0.53351038]
[1672776783000,3.73451299,16680.0,16679.0,0.53751038]
[1672776783242,3.00901899,16680.0,16679.0,0.53351038]
[1672776783516,2.51849899,16680.0,16679.0,0.53751038]
[1672776784013,3.11801899,16680.0,16679.0,0.53751038]
[1672776785003,3.73451299,16680.0,16679.0,0.53751038]
[1672776786033,3.40811319,16680.0,16679.0,0.53751038]
[1672776786250,3.7384746,16680.0,16679.0,0.53751038]
[1672776787309,3.7384146,16680.0,16679.0,0.53751038]
[1672776789346,4.09686108,16680.0,16679.0,0.53751038]
[1672776790637,4.21327478,16680.0,16679.0,0.53751038]
[1672776790895,4.59630433,16680.0,16679.0,0.53751038]
[1672776791114,4.21327478,16680.0,16679.0,0.53751038]
[1672776791375,4.242581,16680.0,16679.0,0.53751038]
[1672776792376,3.8547683,16680.0,16679.0,0.53751038]
[1672776792623,4.06488247,16680.0,16679.0,0.53351038]
[1672776792877,4.17388247,16680.0,16679.0,0.53751038]
[1672776793391,4.06488247,16680.0,16679.0,0.53351038]
[1672776793641,4.42409741,16680.0,16679.0,0.53751038]
[1672776793888,4.0873223,16680.0,16679.0,0.53751038]
[1672776794883,2.51209336,16680.0,16679.0,0.53751038]
[1672776795384,3.11161336,16680.0,16679.0,0.53751038]
[1672776795941,3.11161336,16680.0,16679.0,0.92118103]
[1672776795942,1.86660793,16680.0,16679.0,0.92118103]
[1672776796150,1.86660793,16680.0,16679.0,1.12518703]
[1672776796397,1.43956385,16680.0,16679.0,1.12518703]
[1672776796889,1.43956385,16680.0,16679.0,0.92118103]
[1672776797649,1.43956385,16680.0,16679.0,0.59448461]
[1672776798176,1.43956385,16680.0,16679.0,1.29448461]
[1672776798957,1.79877879,16680.0,16679.0,1.29448461]
[1672776799744,1.79877879,16680.0,16679.0,0.59448461]
[1672776800991,2.2455539,16680.0,16679.0,0.59448461]
[1672776801524,1.88633896,16680.0,16679.0,0.59448461]
[1672776802782,2.24584854,16680.0,16679.0,0.59448461]
[1672776804085,2.24584854,16680.0,16679.0,0.93534556]
[1672776804295,2.24584854,16680.0,16679.0,0.59448461]
[1672776804553,2.24584854,16680.0,16679.0,0.54151038]
[1672776805303,1.88633896,16680.0,16679.0,0.54151038]
[1672776806079,2.62207543,16680.0,16679.0,0.54151038]
[1672776806326,2.17530032,16680.0,16679.0,0.54151038]
[1672776806573,2.17530032,16680.0,16679.0,0.008]
[1672776806822,2.79179432,16680.0,16679.0,0.008]
[1672776807332,2.17530032,16680.0,16679.0,0.008]
[1672776807824,3.39131432,16680.0,16679.0,0.008]
[1672776809522,2.17530032,16680.0,16679.0,0.008]
[1672776811101,2.17530032,16680.0,16679.0,0.00791263]
[1672776813691,1.73992906,16680.0,16679.0,0.00791263]
[1672776813943,2.18959188,16680.0,16679.0,0.00791263]
[1672776814982,2.18959188,16680.0,16679.0,0.34882218]
[1672776815747,2.18959188,16680.0,16679.0,0.00791263]
[1672776816475,2.62496314,16680.0,16679.0,0.00791263]
[1672776817237,2.77482032,16680.0,16679.0,0.00791263]
[1672776817500,2.71142636,16680.0,16679.0,0.00791263]
[1672776817748,3.32792036,16680.0,16679.0,0.00791263]
[1672776818002,2.8925491,16680.0,16679.0,0.00791263]
[1672776818260,3.32792036,16680.0,16679.0,0.00791263]
[1672776818513,2.71142636,16680.0,16679.0,0.00791263]
[1672776819884,1.73992906,16680.0,16679.0,0.00791263]
[1672776820135,2.17530032,16680.0,16679.0,0.00791263]
[1672776822008,2.71142636,16680.0,16679.0,0.00791263]
[1672776822269,2.71142636,16680.0,16679.0,0.0084511]
[1672776823499,1.73992906,16680.0,16679.0,0.0084511]
[1672776823750,2.77482032,16680.0,16679.0,0.0084511]
[1672776824039,2.17530032,16680.0,16679.0,0.0084511]
[1672776824310,3.32792036,16680.0,16679.0,0.0084511]
[1672776825045,2.71142636,16680.0,16679.0,0.0084511]
[1672776825335,3.32792036,16680.0,16679.0,0.0084511]
[1672776825863,2.71142636,16680.0,16679.0,0.0084511]
[1672776826077,3.32792036,16680.0,16679.0,0.0084511]
[1672776826615,2.2760551,16680.0,16679.0,0.0084511]
[1672776826868,2.71142636,16680.0,16679.0,0.0084511]
[1672776831945,3.31094636,16680.0,16679.0,0.0084511]
[1672776832162,2.2760551,16680.0,16679.0,0.0084511]
[1672776833161,2.71142636,16680.0,16679.0,0.0084511]
[1672776834675,2.71142636,16680.0,16679.0,0.00834178]
[1672776838353,3.92744036,16680.0,16679.0,0.00834178]
[1672776839143,3.32792036,16680.0,16679.0,0.00834178]
[1672776839399,1.6765351,16680.0,16679.0,0.00834178]
[1672776839674,1.0770151,16680.0,16679.0,0.00834178]
[1672776839942,1.73992906,16680.0,16679.0,0.21234778]
[1672776840211,1.73992906,16680.0,16679.0,0.00834178]
[1672776840495,1.73992906,16680.0,16679.0,0.33748092]
[1672776840752,1.73992906,16680.0,16679.0,0.00834178]
[1672776841380,0.69048229,16680.0,16679.0,0.38522015]
[1672776841636,0.24052385,16680.0,16679.0,0.33733909]
[1672776841894,0.84004385,16680.0,16679.0,0.33733909]
[1672776842096,0.84004385,16680.0,16679.0,0.00834178]
[1672776842607,1.43956385,16680.0,16679.0,0.00834178]
[1672776844528,2.41106115,16680.0,16679.0,0.00834178]
[1672776844782,1.87493511,16680.0,16679.0,0.00834178]
[1672776845026,2.49142911,16680.0,16679.0,0.00834178]
[1672776845520,3.02755515,16680.0,16679.0,0.00834178]
[1672776846369,2.42803515,16680.0,16679.0,0.00834178]
[1672776846612,1.81154115,16680.0,16679.0,0.00834178]
[1672776846866,1.37616989,16680.0,16679.0,0.00834178]
[1672776847117,0.84004385,16680.0,16679.0,0.00834178]
[1672776847409,0.24052385,16680.0,16679.0,0.33734843]
[1672776847638,0.84004385,16680.0,16679.0,0.33699622]
[1672776848139,0.24052385,16680.0,16679.0,0.33699622]
[1672776848390,0.69044281,16680.0,16679.0,0.33681872]
[1672776849936,0.24052385,16680.0,16679.0,0.33674906]
[1672776850195,1.43956385,16680.0,16679.0,0.00834178]
[1672776850657,1.43956385,16680.0,16679.0,0.33387815]
[1672776850911,1.43956385,16680.0,16679.0,8.00834178]
[1672776851176,1.43956385,16680.0,16679.0,8.3339139]
[1672776851927,1.97568989,16680.0,16679.0,8.3339139]
[1672776852918,2.00168007,16680.0,16679.0,8.3339139]
[1672776853660,2.33969806,16680.0,16679.0,8.3339139]
[1672776854921,2.33969806,16680.0,16679.0,8.36378861]
[1672776855952,2.33969806,16680.0,16679.0,8.00827846]
[1672776856249,2.33969806,16680.0,16679.0,8.56781999]
[1672776856467,1.74017806,16680.0,16679.0,8.56781999]
[1672776856728,1.20405202,16680.0,16679.0,8.56781999]
[1672776857493,1.80357202,16680.0,16679.0,8.56781999]
[1672776860501,1.74017806,16680.0,16679.0,8.36356493]
[1672776861000,2.33969806,16680.0,16679.0,8.36356493]
[1672776861259,2.33969806,16680.0,16679.0,8.00827846]
[1672776861501,2.93921806,16680.0,16679.0,8.00827846]
[1672776862248,2.33969806,16680.0,16679.0,8.00827846]
[1672776862486,2.93921806,16680.0,16679.0,8.00827846]
[1672776863491,3.36626214,16680.0,16679.0,8.00827846]
[1672776864504,3.8016334,16680.0,16679.0,8.00827846]
[1672776867028,3.36626214,16680.0,16679.0,8.00827846]
[1672776867530,3.8016334,16680.0,16679.0,8.00827846]
[1672776868300,3.36626214,16680.0,16679.0,8.00827846]
[1672776869170,2.76674214,16680.0,16679.0,8.00827846]
[1672776869940,2.76674214,16680.0,16679.0,8.36334834]
[1672776870537,2.42872415,16680.0,16679.0,8.36334834]
[1672776870787,1.89259811,16680.0,16679.0,8.56735434]
[1672776871840,1.89259811,16680.0,16679.0,8.36334834]
[1672776872730,1.89259811,16680.0,16679.0,8.56735434]
[1672776873493,1.89259811,16680.0,16679.0,8.36334834]
[1672776873732,1.89259811,16680.0,16679.0,8.3631138]
[1672776874219,1.89259811,16680.0,16679.0,8.5671198]
[1672776874478,1.89259811,16680.0,16679.0,8.3631138]
[1672776875450,1.89259811,16680.0,16679.0,8.5671198]
[1672776875702,1.89252469,16680.0,16679.0,8.5671198]
[1672776876278,2.23844025,16680.0,16679.0,8.3631138]
[1672776876523,1.89252469,16680.0,16679.0,8.5671198]
[1672776876790,2.34238686,16680.0,16679.0,8.5671198]
[1672776877034,2.67062489,16680.0,16679.0,8.56730055]
[1672776877291,2.22076272,16680.0,16679.0,8.36329455]
[1672776877580,2.75688876,16680.0,16679.0,8.36329455]
[1672776878101,2.22076272,16680.0,16679.0,8.36329455]
[1672776878594,2.75688876,16680.0,16679.0,8.36329455]
[1672776879489,3.35640876,16680.0,16679.0,8.36329455]
[1672776879753,2.15736876,16680.0,16679.0,8.36329455]
[1672776880018,2.15736876,16680.0,16679.0,8.56730055]
[1672776880523,2.15736876,16680.0,16679.0,8.54249455]
[1672776880777,1.82913073,16680.0,16679.0,8.54249455]
[1672776880995,0.69348469,16680.0,16679.0,8.74650055]
[1672776882171,1.89252469,16680.0,16679.0,8.74650055]
[1672776882404,1.89252469,16680.0,16679.0,8.54249455]
[1672776882700,1.89252469,16680.0,16679.0,8.74650055]
[1672776882941,1.89252469,16680.0,16679.0,8.54249455]
[1672776883197,1.89252469,16680.0,16679.0,8.74650055]
[1672776883450,1.89252469,16680.0,16679.0,8.54249455]
[1672776883980,2.20164414,16680.0,16679.0,8.18747846]
[1672776884232,2.20164414,16680.0,16679.0,8.5423666]
[1672776884987,2.20164414,16680.0,16679.0,8.7463726]
[1672776886400,2.73777018,16680.0,16679.0,8.18747846]
[1672776886642,2.73777018,16680.0,16679.0,8.5425191]
[1672776886906,2.73777018,16680.0,16679.0,8.18747846]
[1672776887857,2.73777018,16680.0,16679.0,8.54268174]
[1672776888886,2.73777018,16680.0,16679.0,8.18747846]
[1672776889692,2.73777018,16680.0,16679.0,8.54263404]
[1672776889946,2.73777018,16680.0,16679.0,8.18747846]
[1672776890936,3.33729018,16680.0,16679.0,8.18747846]
[1672776891901,2.80116414,16680.0,16679.0,8.18747846]
[1672776892160,3.34113879,16680.0,16679.0,8.18747846]
[1672776893447,3.77651005,16680.0,16679.0,8.18747846]
[1672776894212,2.74161879,16680.0,16679.0,8.18747846]
[1672776894489,3.34113879,16680.0,16679.0,8.18747846]
[1672776894981,2.74161879,16680.0,16679.0,8.18747846]
[1672776896388,2.74161879,16680.0,16679.0,8.18735993]
[1672776896646,2.74161879,16680.0,16679.0,8.62258786]
[1672776896901,2.74161879,16680.0,16679.0,8.62258781]
[1672776897223,2.74161879,16680.0,16679.0,8.18735993]
[1672776897668,2.80116414,16680.0,16679.0,8.18735993]
[1672776899805,3.2365354,16680.0,16679.0,8.18735993]
[1672776900041,2.80116414,16680.0,16679.0,8.18735993]
[1672776900297,2.20164414,16680.0,16679.0,8.18735993]
[1672776900564,3.34107237,16680.0,16679.0,8.44353119]
[1672776900817,2.74155237,16680.0,16679.0,8.44353119]
[1672776902330,2.43243292,16680.0,16679.0,8.44353119]
[1672776903478,2.43243292,16680.0,16679.0,8.44394421]
[1672776904839,3.03195292,16680.0,16679.0,8.44353119]
[1672776905330,2.43243292,16680.0,16679.0,8.44353119]
[1672776906634,2.43243292,16680.0,16679.0,8.44342316]
[1672776908163,1.89252469,16680.0,16679.0,8.44342316]
[1672776908417,0.7163325,16680.0,16679.0,9.06108824]
[1672776908678,1.3461637,16680.0,16679.0,9.06108824]
[1672776908973,0.89627181,16680.0,16679.0,9.06108824]
[1672776909960,0.89627181,16680.0,16679.0,9.76108824]
[1672776910759,0.89627181,16680.0,16679.0,9.58258824]
[1672776911569,0.89627181,16680.0,16679.0,10.18214424]
[1672776912020,0.89627181,16680.0,16679.0,9.58258824]
[1672776912269,0.89627181,16680.0,16679.0,9.58245362]
[1672776912512,0.71621116,16680.0,16679.0,10.46283283]
[1672776912759,0.26644061,16680.0,16679.0,12.10668575]
[1672776913035,0.26644061,16680.0,16679.0,12.15878367]
[1672776913278,0.26635878,16680.0,16679.0,13.16488575]
[1672776913541,0.26635878,16680.0,16679.0,14.5064042]
[1672776913791,0.26635878,16680.0,16679.0,12.73812252]
[1672776914040,0.04735878,16680.0,16679.0,13.16078382]
[1672776914285,0.04735878,16680.0,16679.0,13.63898575]
[1672776914527,0.04735878,16680.0,16679.0,13.91252344]
[1672776914770,0.04735878,16680.0,16679.0,14.79866676]
[1672776915018,0.04735878,16680.0,16679.0,13.64407425]
[1672776915523,0.05935878,16680.0,16679.0,13.64807425]
[1672776915793,0.04735878,16680.0,16679.0,15.69862431]
[1672776916041,0.05735878,16680.0,16679.0,15.92306291]
[1672776916575,0.05735878,16680.0,16679.0,18.52701357]
[1672776916805,0.05735878,16680.0,16679.0,13.25398557]
[1672776917543,0.05735878,16680.0,16679.0,13.46044457]
[1672776918034,0.05735878,16680.0,16679.0,12.98162006]
[1672776918283,0.05735878,16680.0,16679.0,12.68186006]
[1672776918554,0.05735878,16680.0,16679.0,12.73153799]
[1672776918832,0.05735878,16680.0,16679.0,12.73937817]
[1672776919340,0.05735878,16680.0,16679.0,13.03979119]
[1672776920854,0.05735878,16680.0,16679.0,12.56079119]
[1672776921101,0.05735878,16680.0,16679.0,13.16055119]
[1672776921812,0.05735878,16680.0,16679.0,12.86055119]
[1672776922061,0.05735878,16680.0,16679.0,12.86057119]
[1672776923062,0.05735878,16680.0,16679.0,13.16057119]
[1672776923325,0.05735878,16680.0,16679.0,13.10305308]
[1672776923577,0.05735878,16680.0,16679.0,13.28155308]
[1672776924564,0.05735878,16680.0,16679.0,13.33616177]
[1672776924819,0.05735878,16680.0,16679.0,13.28155308]
[1672776925084,0.05735878,16680.0,16679.0,13.32277629]
[1672776926101,0.05735878,16680.0,16679.0,13.02277629]
[1672776926359,0.05735878,16680.0,16679.0,13.28155308]
[1672776926585,0.05735878,16680.0,16679.0,13.3331035]
[1672776926828,0.05735878,16680.0,16679.0,13.28155308]
[1672776928355,0.05735878,16680.0,16679.0,13.3310553]
[1672776928601,0.05735878,16680.0,16679.0,13.33864448]
[1672776928849,0.05735878,16680.0,16679.0,13.33812648]
[1672776929612,0.05735878,16680.0,16679.0,12.25608533]
[1672776929865,0.05735878,16680.0,16679.0,12.95608533]
[1672776930612,0.05735878,16680.0,16679.0,12.72101193]
[1672776930869,0.05735878,16680.0,16679.0,14.22075193]
[1672776932872,0.05735878,16680.0,16679.0,14.27737633]
[1672776933096,0.05735878,16680.0,16679.0,13.32075193]
[1672776933331,0.05735878,16680.0,16679.0,13.37084092]
[1672776933798,0.05735878,16680.0,16679.0,14.22075193]
[1672776934586,0.05735878,16680.0,16679.0,14.40065193]
[1672776937093,0.05735878,16680.0,16679.0,13.50065193]
[1672776937357,0.05735878,16680.0,16679.0,12.80065193]
[1672776937867,0.05735878,16680.0,16679.0,11.52426932]
[1672776938118,0.05735878,16680.0,16679.0,12.34742999]
[1672776938373,0.05735878,16680.0,16679.0,12.64742999]
[1672776939123,0.05735878,16680.0,16679.0,12.76730999]
[1672776939879,0.05735878,16680.0,16679.0,12.7201039]
[1672776940124,0.05735878,16680.0,16679.0,13.6201039]
[1672776941181,0.05735878,16680.0,16679.0,13.66711267]
[1672776941422,0.05735878,16680.0,16679.0,13.6201039]
[1672776941682,0.05735878,16680.0,16679.0,13.67894078]
[1672776941927,0.05735878,16680.0,16679.0,12.77894078]
[1672776945770,0.05735878,16680.0,16679.0,12.47894078]
[1672776946278,0.05735878,16680.0,16679.0,12.77894078]
[1672776947283,0.05735878,16680.0,16679.0,12.7201039]
[1672776947530,0.05735878,16680.0,16679.0,12.76895175]
[1672776947807,0.05735878,16680.0,16679.0,13.0205479]
[1672776948091,0.05735878,16680.0,16679.0,13.77927241]
[1672776948332,0.05735878,16680.0,16679.0,15.29179854]
[1672776948817,0.05735878,16680.0,16679.0,14.93391801]
[1672776949313,0.05735878,16680.0,16679.0,6.93401286]
[1672776949565,0.05735878,16680.0,16679.0,7.29177694]
[1672776950081,0.00419632,16681.0,16680.0,0.84508755]
[1672776950334,0.00419632,16681.0,16680.0,5.86610653]
[1672776950579,0.00419632,16681.0,16680.0,7.09936681]
[1672776951348,0.00419632,16681.0,16680.0,7.09970183]
[1672776951605,0.01319632,16681.0,16680.0,7.21230225]
[1672776951828,0.01319632,16681.0,16680.0,7.57539329]
[1672776952607,0.01319632,16681.0,16680.0,7.75422183]
[1672776955189,0.01319632,16681.0,16680.0,7.9331658]
[1672776955743,0.01319632,16681.0,16680.0,7.57542364]
[1672776955964,0.01319632,16681.0,16680.0,7.9331658]
[1672776956206,0.01319632,16681.0,16680.0,8.2328958]
[1672776956716,0.01319632,16681.0,16680.0,7.87515364]
[1672776957481,0.01319632,16681.0,16680.0,6.79465364]
[1672776958737,0.01319632,16681.0,16680.0,5.90853419]
[1672776959206,0.01319632,16681.0,16680.0,6.79461881]
[1672776959481,0.01319632,16681.0,16680.0,5.90853419]
[1672776959739,0.01319632,16681.0,16680.0,6.79461936]
[1672776959994,0.01319632,16681.0,16680.0,5.9641353]
[1672776960241,0.01319632,16681.0,16680.0,5.90853419]
[1672776960490,0.01319632,16681.0,16680.0,5.64012192]
[1672776963030,0.01319632,16681.0,16680.0,5.90853419]
[1672776963275,0.01319632,16681.0,16680.0,6.79462558]
[1672776963790,0.01319632,16681.0,16680.0,6.8476328]
[1672776964044,0.01319632,16681.0,16680.0,5.69312914]
[1672776964286,0.01319632,16681.0,16680.0,5.46152192]
[1672776964545,0.01319632,16681.0,16680.0,5.72993419]
[1672776965754,0.01319632,16681.0,16680.0,5.78000737]
[1672776966000,0.01319632,16681.0,16680.0,5.5115951]
[1672776966260,0.49010634,16681.0,16680.0,1.12411475]
[1672776966510,0.75996376,16681.0,16680.0,0.87005257]
[1672776967003,1.16173062,16681.0,16680.0,0.81505257]
[1672776967250,1.16173062,16681.0,16680.0,0.86505257]
[1672776967251,1.17173062,16681.0,16680.0,0.86505257]
[1672776967507,1.03089142,16681.0,16680.0,0.86505257]
[1672776967771,1.02089142,16681.0,16680.0,0.81505257]
[1672776968026,0.52511376,16681.0,16680.0,0.11505257]
[1672776968294,0.51411376,16681.0,16680.0,0.11505257]
[1672776968540,0.51411376,16681.0,16680.0,0.12505257]
[1672776968541,1.7977142,16681.0,16680.0,0.12505257]
[1672776968790,1.79766575,16681.0,16680.0,0.12505257]
[1672776969041,2.39714975,16681.0,16680.0,0.12505257]
[1672776969293,3.47581888,16681.0,16680.0,0.12505257]
[1672776969579,3.80431099,16681.0,16680.0,0.12505257]
[1672776970058,3.8851177,16681.0,16680.0,0.11505257]
[1672776970322,5.17991311,16681.0,16680.0,0.11505257]
[1672776970577,3.63318043,16681.0,16680.0,0.08835257]
[1672776970827,4.05428043,16681.0,16680.0,0.08835257]
[1672776971338,4.95808651,16681.0,16680.0,0.08835257]
[1672776972107,4.35428043,16681.0,16680.0,0.08835257]
[1672776972372,4.15328043,16681.0,16680.0,0.09335257]
[1672776972624,4.09153226,16681.0,16680.0,0.09335257]
[1672776973465,4.37399884,16681.0,16680.0,0.09335257]
[1672776973657,4.07399884,16681.0,16680.0,0.09335257]
[1672776974393,4.25718047,16681.0,16680.0,0.09335257]
[1672776974696,4.16710765,16681.0,16680.0,0.09335257]
[1672776975417,4.52559748,16681.0,16680.0,0.09335257]
[1672776976907,4.34609664,16681.0,16680.0,0.09335257]
[1672776977398,4.79427565,16681.0,16680.0,0.09335257]
[1672776977648,4.34609664,16681.0,16680.0,0.09335257]
[1672776978154,4.52550243,16681.0,16680.0,0.09335257]
[1672776978409,4.1670126,16681.0,16680.0,0.09335257]
[1672776978667,4.52529481,16681.0,16680.0,0.09335257]
[1672776981484,4.34574675,16681.0,16680.0,0.09335257]
[1672776982983,4.52479585,16681.0,16680.0,0.09335257]
[1672776983979,4.16651364,16681.0,16680.0,0.09335257]
[1672776987271,3.89788269,16681.0,16680.0,0.09335257]
[1672776987492,4.16651364,16681.0,16680.0,0.09335257]
[1672776988464,3.80373201,16681.0,16680.0,0.09335257]
[1672776988731,3.98296512,16681.0,16680.0,0.09335257]
[1672776988988,4.34241318,16681.0,16680.0,0.09335257]
[1672776989732,4.61095851,16681.0,16680.0,0.09335257]
[1672776990232,4.1627795,16681.0,16680.0,0.09372503]
[1672776990487,4.61095851,16681.0,16680.0,0.09372503]
[1672776990738,4.1627795,16681.0,16680.0,0.09372503]
[1672776991765,4.34241318,16681.0,16680.0,0.09372503]
[1672776992772,4.28413097,16681.0,16680.0,0.09372503]
[1672776993268,4.01585196,16681.0,16680.0,0.09372503]
[1672776993509,4.19435196,16681.0,16680.0,0.09372503]
[1672776994273,4.01445196,16681.0,16680.0,0.09372503]
[1672776995017,4.55270379,16681.0,16680.0,0.09372503]
[1672776996024,4.01445196,16681.0,16680.0,0.09372503]
[1672776996796,4.55270379,16681.0,16680.0,0.09372503]
[1672776997045,4.87470617,16681.0,16680.0,0.09372503]
[1672776997292,3.53455196,16681.0,16680.0,0.09372503]
[1672776997813,3.98239283,16681.0,16680.0,0.09372503]
[1672776998054,3.84440488,16681.0,16680.0,0.09372503]
[1672776998307,4.34066039,16681.0,16680.0,0.09372503]
[1672776998576,3.80389179,16681.0,16680.0,0.09372503]
[1672776998798,3.35605196,16681.0,16680.0,0.09372503]
[1672776999052,3.12174455,16681.0,16680.0,0.09372503]
[1672776999308,2.90050516,16681.0,16680.0,0.09372503]
[1672776999792,3.16929173,16681.0,16680.0,0.09372503]
[1672777000050,2.12180309,16681.0,16680.0,0.09372503]
[1672777000305,2.12180309,16681.0,16680.0,0.93905987]
[1672777000306,1.3086543,16681.0,16680.0,0.93905987]
[1672777000556,0.52996563,16681.0,16680.0,0.50368861]